Cogmind - Beta 14 @@@ ROGUE MODE // 2024.09.05 @ 14:53:00 Player: Squagnar Result: Destroyed by S-27 Virus with Autogun Performance ------------- Evolutions (4) 2000 Regions Visited (6) 1200 Robots Destroyed (35) 175 Value Destroyed (749) 749 Prototype IDs (5) 100 Alien Tech Used (0) 0 Bonus (500) 500 TOTAL SCORE: 4724 Bonus ------- Entered DSFs 500 Cogmind --------- Core Integrity 0/850 Matter 32/300 Energy 94/100 System Corruption 0% Temperature Cool (0) Movement Core (50) Location -6/DSF Parts ------- > --- POWER (2) -------- (None) > --- PROPULSION (4) --- (None) > --- UTILITY (7) ------ (None) > --- WEAPON (2) ------- (None) > --- INVENTORY (5) ---- Cesium-ion Thruster Xenon Bombardment Thruster Improved Heat Sink Medium Battery (150) Hardened Medium Armor Plating Peak State ------------ > --- POWER ------------ Deuterium Engine Micro Nuclear Core > --- PROPULSION ------- Cesium-ion Thruster Cesium-ion Thruster Cesium-ion Thruster Biomechanical Wings > --- UTILITY ---------- Advanced Weight Redist. System Signal Interpreter Advanced Targeting Computer Light Armor Plating Shield Generator Shield Generator > --- WEAPON ----------- Heavy Assault Rifle Heavy Assault Rifle > --- INVENTORY -------- Cesium-ion Thruster Xenon Bombardment Thruster Improved Heat Sink Medium Battery Hardened Medium Armor Plating [Rating: 39] Favorites ----------- Power Improved Ion Engine Engine Improved Ion Engine Power Core Micro Nuclear Core Reactor Cold Fusion Reactor Propulsion Aluminum Leg Leg Aluminum Leg Flight Unit Cesium-ion Thruster Utility Signal Interpreter Device Improved Terrain Scanner Storage Medium Storage Unit Processor Signal Interpreter Protection Light Armor Plating Weapon Assault Rifle Energy Gun Improved EM Shotgun Energy Cannon Ion Cannon Ballistic Gun Assault Rifle Launcher Grenade Launcher Special Weapon Plasma Cutter Impact Weapon Mace Build | -11 -10 -9 -8 -7 -6 -6 ------- Run | Yrd Mat Mat Mat Fac Fac DSF Slots Evolved 8 | . . 2 2 2 2 . Power 1 | . . . . . 1 . Propulsion 2 | . . . 2 . . . Utility 5 | . . 2 . 2 1 . Weapon . | . . . . . . . Parts Attached 65 | 8 3 28 6 8 10 2 Power 10 | 2 . 3 1 1 3 . Engine 7 | 2 . 3 1 . 1 . Core 2 | . . . . 1 1 . Reactor 1 | . . . . . 1 . Propulsion 19 | 2 2 7 4 2 2 . Treads . | . . . . . . . Leg 10 | 2 2 6 . . . . Wheel . | . . . . . . . Hover . | . . . . . . . Flight 9 | . . 1 4 2 2 . Utility 18 | 2 . 7 1 3 5 . Device 6 | 1 . 1 1 1 2 . Storage 3 | 1 . 1 . . 1 . Processor 3 | . . 2 . 1 . . Hackware . | . . . . . . . Protection 6 | . . 3 . 1 2 . Artifact . | . . . . . . . Weapon 18 | 2 1 11 . 2 . 2 Energy Gun 4 | . . 4 . . . . Energy Cannon 1 | . . . . . . 1 Ballistic Gun 9 | 2 1 4 . 2 . . Ballistic Cannon . | . . . . . . . Launcher 2 | . . 2 . . . . Special Weapon 1 | . . 1 . . . . Impact Weapon 1 | . . . . . . 1 Slashing Weapon . | . . . . . . . Piercing Weapon . | . . . . . . . Special Melee Weapon . | . . . . . . . Unidentified Prototypes 5 | . . 2 . 1 2 . Parts Lost 9 | . . 6 . . . 3 Power 1 | . . 1 . . . . Propulsion 4 | . . 2 . . . 2 Utility 1 | . . . . . . 1 Weapon 3 | . . 3 . . . . Highest Loss Streak 6 | . . 6 . . . 3 To Critical Strikes . | . . . . . . . Average Slot Usage (%) 91 | . 100 95 98 98 90 42 Engine 8 | . 14 9 9 2 6 2 Leg 17 | . 28 21 . . . . Flight 4 | . . . 36 30 26 12 Device 7 | . 14 5 7 15 18 9 Storage 9 | . 14 11 . . . . Processor 17 | . . 22 18 15 13 7 Protection 5 | . . 5 9 13 6 2 Energy Gun 5 | . . 8 . . . . Ballistic Gun 13 | . 28 12 18 15 13 5 Peak Build Rating 39 | 9 11 19 26 35 39 39 Average Rating 15 | 6 9 15 25 33 36 19 On Entrance 19 | . 9 11 15 26 34 39 Naked Turns 52 | . . . . . . 52 Heaviest Build 28 | 15 15 26 20 28 28 28 Greatest Support 30 | 20 26 26 20 29 30 30 Greatest Overweight (x) 3 | . . 3 . . . 1 Average Overweight (x) . | . . . . . . . Largest Inventory Capacity 10 | 8 8 10 10 5 5 5 Average Capacity 8 | 7 8 9 5 5 5 5 Most Carried 10 | 8 8 10 9 5 5 5 Average Carried 7 | 4 7 7 5 4 4 5 Final Capacity 10 | 8 8 10 5 5 5 5 Final Carried 10 | 8 8 10 5 5 5 5 Class Distribution -------------------- 52% | Mutant 34% | Scavenger-Mutant 13% | Sprinter Dominant Class ---------------- Mutant | -10/Materials Scavenger-Mutant | -9/Materials Sprinter | -8/Materials Sprinter | -7/Factory Sprinter | -6/Factory Mutant | -6/DSF Resources | -11 -10 -9 -8 -7 -6 -6 ----------- Run | Yrd Mat Mat Mat Fac Fac DSF Matter Collected 954 | 292 80 539 . . . 43 Remotely . | . . . . . . . Salvage Created 1063 | 95 113 839 16 . . . Parts 79 | 7 16 52 4 . . . Haulers Intercepted 3 | . . 3 . . . . Recyclers Shooed 1 | . . 1 . . . . Parts Field Recycled . | . . . . . . . Retrieved Matter . | . . . . . . . Parts Self-Destructed . | . . . . . . . Prevented . | . . . . . . . Kills | -11 -10 -9 -8 -7 -6 -6 ------- Run | Yrd Mat Mat Mat Fac Fac DSF Combat Hostiles Destroyed 23 | . 6 17 . . . . Guns 16 | . 6 10 . . . . AOE 7 | . . 7 . . . . Classes Destroyed 10 | 2 2 5 1 . . . Worker 1 | . . 1 . . . . Tunneler 2 | 1 . 1 . . . . Hauler 3 | . . 3 . . . . Recycler 1 | 1 . . . . . . Operator 1 | . . . 1 . . . Watcher 4 | . 1 3 . . . . Swarmer 10 | . 6 4 . . . . Grunt 7 | . . 7 . . . . Duelist 2 | . . 2 . . . . Sentry 4 | . . 4 . . . . Best Kill Streak 7 | 2 4 7 1 . . . Combat Bots Only 5 | . 3 5 . . . . Max Kills in Single Turn 3 | 1 1 3 1 . . . Gunslinging . | . . . . . . . Exploded 3 | . . 3 . . . . Melee . | . . . . . . . Uniques/NPCs Destroyed . | . . . . . . . Combat | -11 -10 -9 -8 -7 -6 -6 -------- Run | Yrd Mat Mat Mat Fac Fac DSF Hostile Shots Fired 238 | . 20 120 9 . . 89 Missed 82 | . 6 37 6 . . 33 Damage Taken 2375 | . 155 1101 33 . . 1086 Core 1064 | . 37 176 . . . 851 Absorbed by Shields 197 | . . 26 13 . . 158 Redirected to Shielding 30 | . . 30 . . . . Core Remaining (%) 88 | 100 85 56 100 100 . . Volleys Fired 97 | 2 11 75 5 . 3 1 Largest 2 | 2 2 2 2 . 2 2 Hottest 90 | 40 40 90 46 . 46 46 Shots Fired 182 | 4 22 138 10 . 6 2 Gun 171 | 4 22 127 10 . 6 2 Cannon . | . . . . . . . Launcher 3 | . . 3 . . . . Special 8 | . . 8 . . . . Kinetic 129 | 4 22 85 10 . 6 2 Thermal 23 | . . 23 . . . . Explosive 3 | . . 3 . . . . Electromagnetic 27 | . . 27 . . . . Robot Hit Streak 16 | 3 6 16 4 . 6 . Robot Miss Streak 4 | . 4 3 1 . 1 2 Penetration Max . | . . . . . . . Secondary Targets 3 | . 2 1 . . . . Max Gunslinging Chain 1 | . 1 1 . . . . Shots Hit Robots 113 | 3 10 89 7 . 4 . Core Hits 57 | 3 7 43 3 . 1 . Critical Kills . | . . . . . . . Critical Parts Destroyed . | . . . . . . . Critical Strikes 1 | . . 1 . . . . Burn 1 | . . 1 . . . . Melee Attacks 1 | . . . . . . 1 Impact 1 | . . . . . . 1 Slashing . | . . . . . . . Piercing . | . . . . . . . Sneak Attacks . | . . . . . . . Combat Hostiles . | . . . . . . . Follow-up Attacks . | . . . . . . . Damage Inflicted 2101 | 43 136 1754 95 . 58 15 Guns 1649 | 43 136 1302 95 . 58 15 Cannons . | . . . . . . . Explosions 452 | . . 452 . . . . Melee . | . . . . . . . Ramming . | . . . . . . . Kinetic 1100 | 43 136 753 95 . 58 15 Thermal 201 | . . 201 . . . . Explosive 366 | . . 366 . . . . Electromagnetic 434 | . . 434 . . . . Impact . | . . . . . . . Slashing . | . . . . . . . Piercing . | . . . . . . . Highest Corruption 5 | . . . . 5 . . Average Corruption 5 | . . . . 5 . . Corruption Purged . | . . . . . . . Corruption Blocked . | . . . . . . . Effects 1 | . . . . 1 . . Heat Flow Errors 1 | . . . . 1 . . Overload Shots . | . . . . . . . Overflow Damage 9 | . . 9 . . . . Projectiles . | . . . . . . . Explosions 9 | . . 9 . . . . Melee . | . . . . . . . Knockbacks . | . . . . . . . Impact . | . . . . . . . Kinetic . | . . . . . . . Secondary . | . . . . . . . Self-Inflicted Damage 40 | . . 40 . . . . Shots 1 | . . 1 . . . . Rammed . | . . . . . . . Targets Rammed . | . . . . . . . Kicked . | . . . . . . . Crushed . | . . . . . . . Highest Temperature 272 | . . 156 9 272 3 . Average Temperature 46 | . . 33 4 107 2 . Received Heat Transfer 416 | . . 398 18 . . . Siege Activations . | . . . . . . . Robots Corrupted 1 | . . 1 . . . . Combat Hostiles . | . . . . . . . Parts Fried 2 | . . 2 . . . . Impact Corruptions . | . . . . . . . Robots Melted . | . . . . . . . Combat Hostiles . | . . . . . . . Parts Melted 2 | . . 2 . . . . Heat Transferred 470 | . . 470 . . . . Parts Sabotaged . | . . . . . . . Parts Stolen . | . . . . . . . Parts Stripped . | . . . . . . . Power Chain Reactions 1 | . . 1 . . . . Alert | -11 -10 -9 -8 -7 -6 -6 ------- Run | Yrd Mat Mat Mat Fac Fac DSF Peak Influence 395 | 10 183 395 208 94 60 105 Initial 158 | . 6 76 158 94 45 45 Average 167 | 4 102 223 175 94 53 42 Maximum Alert Level 1 | . . 1 1 . . . Low Security (%) 67 | 100 100 47 98 100 100 100 Level 1 32 | . . 52 1 . . . Level 2 . | . . . . . . . Level 3 . | . . . . . . . Level 4 . | . . . . . . . Level 5 . | . . . . . . . High Security . | . . . . . . . Max Security . | . . . . . . . Squads Dispatched 7 | . . 2 3 . . 2 Investigation . | . . . . . . . Extermination . | . . . . . . . Reinforcement 6 | . . 2 2 . . 2 Assault . | . . . . . . . Garrison 1 | . . . 1 . . . Intercept . | . . . . . . . Searches Triggered . | . . . . . . . Construction Impeded . | . . . . . . . Haulers Reinforced . | . . . . . . . Active Scanning Responses . | . . . . . . . Cargo Convoy Interrupts . | . . . . . . . Stealth | -11 -10 -9 -8 -7 -6 -6 --------- Run | Yrd Mat Mat Mat Fac Fac DSF Distress Signals 3 | . 1 2 . . . . Communications Jammed . | . . . . . . . Distress Signals . | . . . . . . . Times Spotted 61 | . 8 29 8 . 1 15 Peak Tracking Total 8 | . 4 7 8 . 1 8 Tactical Retreats 7 | . . 4 . . . 3 Traps | -11 -10 -9 -8 -7 -6 -6 ------- Run | Yrd Mat Mat Mat Fac Fac DSF Traps Triggered 7 | . 1 . . . . 6 Indirectly . | . . . . . . . Trap Hack Attempts . | . . . . . . . Triggered . | . . . . . . . Disarmed 4 | . . 4 . . . . Reprogrammed . | . . . . . . . Reused . | . . . . . . . Traps Extracted . | . . . . . . . Installed . | . . . . . . . Triggered . | . . . . . . . Machines | -11 -10 -9 -8 -7 -6 -6 ---------- Run | Yrd Mat Mat Mat Fac Fac DSF Machines Disabled 3 | . 1 2 . . . . Max in Single Turn 2 | . 1 2 . . . . Machines Repaired . | . . . . . . . Machines Dismantled . | . . . . . . . Machines Sabotaged . | . . . . . . . Overloaded Fab Kills . | . . . . . . . Hacking | -11 -10 -9 -8 -7 -6 -6 --------- Run | Yrd Mat Mat Mat Fac Fac DSF Machines Accessed 6 | . . 4 . 1 1 . Terminals 6 | . . 4 . 1 1 . Fabricators . | . . . . . . . Repair Stations . | . . . . . . . Recycling Units . | . . . . . . . Scanalyzers . | . . . . . . . Garrison Access . | . . . . . . . Total Hacks 19 | . . 12 . 2 5 . Successful 10 | . . 8 . 1 1 . Failed 9 | . . 4 . 1 4 . Catastrophic 1 | . . 1 . . . . Database Lockouts . | . . . . . . . Manual . | . . . . . . . Terminals 19 | . . 12 . 2 5 . Fabricators . | . . . . . . . Repair Stations . | . . . . . . . Recycling Units . | . . . . . . . Scanalyzers . | . . . . . . . Garrison Access . | . . . . . . . Terminal Hacks 10 | . . 8 . 1 1 . Robot Analysis 1 | . . 1 . . . . Open DSF 1 | . . . . . 1 . Alert Level 2 | . . 1 . 1 . . Locate Traps 1 | . . 1 . . . . Disarm Traps 1 | . . 1 . . . . Surveillance Status 1 | . . 1 . . . . Hauler Manifests 1 | . . 1 . . . . Registered Components 1 | . . 1 . . . . Zone Layout 1 | . . 1 . . . . Fabricator Hacks . | . . . . . . . Repair Station Hacks . | . . . . . . . Recycling Unit Hacks . | . . . . . . . Scanalyzer . | . . . . . . . Garrison Access Hacks . | . . . . . . . Unauthorized Hacks . | . . . . . . . Terminals . | . . . . . . . Fabricators . | . . . . . . . Repair Stations . | . . . . . . . Recycling Units . | . . . . . . . Scanalyzers . | . . . . . . . Garrison Access . | . . . . . . . Data Cores Recovered . | . . . . . . . Used . | . . . . . . . Hacking Detections 5 | . . 3 . 1 1 . Full Trace Events . | . . . . . . . Feedback Events . | . . . . . . . Feedback Blocked . | . . . . . . . Robot Schematics Acquired . | . . . . . . . Robots Built . | . . . . . . . Authchips . | . . . . . . . Time . | . . . . . . . Total Robot Build Rating . | . . . . . . . Part Schematics Acquired . | . . . . . . . Parts Built . | . . . . . . . Authchips . | . . . . . . . Time . | . . . . . . . Total Part Build Rating . | . . . . . . . Parts Repaired . | . . . . . . . Time . | . . . . . . . Parts Recycled . | . . . . . . . Recycled Matter . | . . . . . . . Retrieved Matter . | . . . . . . . Retrieved Components . | . . . . . . . Parts Scanalyzed . | . . . . . . . Part Schematics Acquired . | . . . . . . . Parts Damaged . | . . . . . . . Bothacking | -11 -10 -9 -8 -7 -6 -6 ------------ Run | Yrd Mat Mat Mat Fac Fac DSF Used RIF Installer . | . . . . . . . Robots Hacked . | . . . . . . . Non-combat . | . . . . . . . Combat . | . . . . . . . Robot Hacks Applied . | . . . . . . . Relay Couplers Released . | . . . . . . . Fabnet Peak Effective % . | . . . . . . . Robots Rewired . | . . . . . . . Allies Hacked . | . . . . . . . Hacks Repelled . | . . . . . . . Allies | -11 -10 -9 -8 -7 -6 -6 -------- Run | Yrd Mat Mat Mat Fac Fac DSF Total Allies . | . . . . . . . Largest Group . | . . . . . . . Highest-Rated Group . | . . . . . . . Highest-Rated Ally . | . . . . . . . Total Orders . | . . . . . . . Ally Attacks . | . . . . . . . Total Damage . | . . . . . . . Kills . | . . . . . . . Allies Corrupted . | . . . . . . . Allies Melted . | . . . . . . . Intel | -11 -10 -9 -8 -7 -6 -6 ------- Run | Yrd Mat Mat Mat Fac Fac DSF Robot Analysis Total 1 | . . 1 . . . . Derelict Logs Recovered . | . . . . . . . Drone Launches . | . . . . . . . Drone Recoveries . | . . . . . . . Exploration | -11 -10 -9 -8 -7 -6 -6 ------------- Run | Yrd Mat Mat Mat Fac Fac DSF Turns Passed 1805 | 118 226 1127 64 59 59 152 Spaces Moved 1350 | 65 139 571 139 162 105 169 Core 84 | 7 . 2 . . . 75 Treads . | . . . . . . . Legs 766 | 58 139 569 . . . . Wheels . | . . . . . . . Hover . | . . . . . . . Flight 500 | . . . 139 162 105 94 Fastest Speed 26 | 50 120 120 26 26 26 27 Average Speed 91 | 112 120 142 26 26 26 45 Slowest Speed 260 | 120 120 260 26 26 29 105 Overloaded Moves . | . . . . . . . Propulsion Burnouts . | . . . . . . . Robots Hopped 1 | . . . . . . 1 Cave-ins Triggered . | . . . . . . . Exploration Rate (%) 27 | 6 30 42 16 5 4 90 Regions Visited 6 Branch Regions . Pre-discovered Areas . | . . . . . . . Known Exits Taken 4 | . . 1 1 1 1 . Unknown Exits Taken 2 | 1 1 . . . . . Scrap Searched . | . . . . . . . Spaces Dug . | . . . . . . . Terrain Destroyed 21 | . . 21 . . . . Melee . | . . . . . . . Projectile . | . . . . . . . AOE 21 | . . 21 . . . . Terrain Rammed . | . . . . . . . Walls Destroyed . | . . . . . . . Machines Disabled . | . . . . . . . Actions | -11 -10 -9 -8 -7 -6 -6 --------- Run | Yrd Mat Mat Mat Fac Fac DSF Total 1721 | 105 181 735 156 177 129 238 Wait 56 | 16 9 25 1 . 3 2 Move 1342 | 64 138 570 138 161 104 167 Hop 1 | . . . . . . 1 Pick Up 58 | 15 9 23 3 5 3 . Fast Attach 4 | . . 1 . . 1 2 Attach 27 | 7 . 9 3 3 5 . Detach 3 | . . . . . 3 . Swap 34 | 1 3 18 3 5 4 . Drop 34 | . 11 14 3 3 3 . Fire 97 | 2 11 75 5 . 3 1 Melee 1 | . . . . . . 1 Ram . | . . . . . . . Kick . | . . . . . . . Crush . | . . . . . . . Escape Stasis 64 | . . . . . . 64 Rewire . | . . . . . . . Trap . | . . . . . . . Miscellaneous . | . . . . . . . Route ------- -11/Scrapyard -10/Materials (discovered 2 exits: *Mat / [*Min]) -9/Materials -8/Materials -7/Factory -6/Factory -6/DSF (discovered 1 exit: [*Fac]) History --------- Turn | Location | Event 28 | -11/Scrapyard | Discovered new exit (range 14) 119 | -11/Scrapyard | Entered Materials 206 | -10/Materials | Discovered new exit (range 8) 301 | -10/Materials | Discovered new exit (range 8) 345 | -10/Materials | Entered another Materials area 345 | -9/Materials | Evolved 2 slots: Utility x2 367 | -9/Materials | Build established: Mutant 1142 | -9/Materials | Lost 6 parts (1p2n3w) 1274 | -9/Materials | Discovered new exit (range 11) 1286 | -9/Materials | Identified exit to Materials 1406 | -9/Materials | Build established: Scavenger-Mutant 1472 | -9/Materials | Entered another Materials area 1472 | -8/Materials | Evolved 2 slots: Propulsion x2 1511 | -8/Materials | Garrison activated, responded to threat 1530 | -8/Materials | Discovered new exit (range 4) 1531 | -8/Materials | Identified exit to Factory 1536 | -8/Materials | Entered Factory 1536 | -7/Factory | Evolved 2 slots: Utility x2 1592 | -7/Factory | Discovered new exit (range 13) 1595 | -7/Factory | Identified exit to Factory 1595 | -7/Factory | Entered another Factory area 1595 | -6/Factory | Evolved 2 slots: Power x1, Utility x1 1654 | -6/Factory | Identified exit to DSF 1654 | -6/Factory | Entered DSF 1714 | -6/DSF | Additional patrols routed to DSF 1745 | -6/DSF | Discovered new exit (range 14) 1770 | -6/DSF | Lost 3 parts (2n1u) 1777 | -6/DSF | Core integrity fell below 50% 1792 | -6/DSF | Core integrity fell below 20% 1806 | -6/DSF | Destroyed by S-27 Virus with Autogun Last Messages --------------- Field strength at 27. Field strength at 16. Field strength at 6. Stasis field depleted. ALERT: Suspicious intruders detected, dispatching Cutter reinforcements to area. C-17 Slicer destroyed. C-17 Slicer knocked back. Knocked back. C-17 Slicer destroyed. Penetrated by Slug. Acquired 11 matter. C-30 ARC bursts open, deploying its payload. S-27 Virus unfolds itself. Acquired 20 matter. Acquired 5 matter. Penetrated by Slug. Knocked back. Acquired Mace. Mace severed. Map ----- +----------------------------------------------------+ | | | | | | | | | | | | | | | | | | | | | | | | | | | | | | | | | | | ????????????????????????????????????????????????? | | ????????????????????????????????????????????????? | | ????????????????????????????????????????????????? | | ????????##??????????????????????????????????????? | | ????????""#?????????????????????????#""?????????? | | ????????#"#?????????????????????????#"#?????????? | | ?????####"##???????#########???????##"####??????? | | ?????#"""""######### !!c//#########"""""#??????? | | ?????#"""""##!!# # !!c@/# #//##"""""#??????? | | ???"##"" ss c * [= ""##"????? | | ???""""" ^s s ! [* """""????? | | ???###"" ##!!#!!!### ###///#//## ""###????? | | ?????### ###!!#!!!#?# #?#///#//### ###??????? | | ??????## ########## ########## ##???????? | | ??????#! !!#??????# #??????#// #???????? | | ??????#! !!#??????# #??????#// #???????? | | ??????## ###??????### ###??????### ##???????? | | ??????# !!#????????! !????????#// /#???????? | | ??????# !!#???????!! !????????#// /#???????? | | ??????# !#???????!! !!???????#// /#???????? | | ?????### ######???### ###???###### ###??????? | | ?????# #?***#?!!### #?#!!?# ?# #??????? | | ?????# ##***#!!!##A ##!!!# ## #??????? | | ????##[[ #??????? | | ????#"[[ H #??????? | | ????# [[ #??????? | | ????##%/! ##!!!#===## ##!!!#[[[## #??????? | | ?????# #?!!!#??=#?# #?#!!?#[[[?# #??????? | | ?????### ######???### ###???###### ###??????? | | ??????# !!#??????#!! [[???????# #???????? | | ??????# !!#??????#!! [[???????# #???????? | | ??????# !!#??????#!! [????????# #???????? | | ??????## ###??????### ###??????### ##???????? | +----------------------------------------------------+ Best States ------------- Heat Dissipation 37 Energy Generation 24 Energy Capacity 325 Matter Stores 300 Matter Capacity 300 Sight Range 16 Terrain Scan Range 16 Terrain Scan Density 10 Additional Mass Support 9 Armor Coverage 375 Core Shielding 20 Evasion (%) 64 Targeting Accuracy 8 Item Schematics ----------------- None Robot Schematics ------------------ None Fabricated ------------ Nothing Alien Tech Used ----------------- None Achievements -------------- None Challenges ------------ None Game ------ Seed ImpulseGreatSink Manual? 0 Play Time 00:34:21 Cumulative 6.0 hours Start 2024.09.05 @ 14:21:32 End 2024.09.05 @ 14:53:00 Sessions 1 Manual Loads 0 Difficulty Rogue Special Mode None Game No. 7 Rogue 5 Adventurer 2 Explorer 0 Win Type - Total 0 Types 0/0/0/0/0/0/0/0/0 Lore% 10 Gallery% 12 Achievement% 13 Wizard Run 0 Options --------- Layout 1 ASCII 0 Keyboard 0 Movement Mouse Keybinds 0 Fullscreen 1 Font 24/Proggy Map View 50x35 Zoom Use 0% Tactical HUD 0 Map Filters NONE Filters NONE Steam 1 RUN: f7e1564a-404b-44c8-80d0-9b81da40f7f5